Cogmind - Beta 9.3 @@@ ROGUE MODE // 2019.12.17 @ 06:07:28 // Winter2019/RPGLIKE Player: spruce (@macklemurr) Result: Destroyed self with YOLO Cannon Performance ------------- Evolutions (2) 1000 Regions Visited (5) 1000 Robots Destroyed (37) 185 Value Destroyed (521) 521 Prototype IDs (24) 480 Alien Tech Used (0) 0 Bonus (246) 246 TOTAL SCORE: 3432 Bonus ------- High Alert Combat Kills 2 Follower Combat Kills 296 Aligned with FarCom 300 Friendly Fire -352 Cogmind --------- Core Integrity 0/1000 Matter 290/300 Energy 89/275 System Corruption 0% Temperature Cool (22) Movement Hovering (51) Location -8/Materials Parts ------- > --- POWER (1) -------- Deuterium Engine > --- PROPULSION (2) --- Improved Hover Unit Aerolev Unit > --- UTILITY (2) ------ Advanced Terrain Scanner > --- WEAPON (2) ------- YOLO Cannon > --- INVENTORY (3) ---- Longsword +1 Peak State ------------ > --- POWER ------------ Deuterium Engine > --- PROPULSION ------- Improved Hover Unit Aerolev Unit > --- UTILITY ---------- Advanced Terrain Scanner > --- WEAPON ----------- YOLO Cannon > --- INVENTORY -------- Longsword +1 [Rating: 32] Favorites ----------- Power Ion Engine Engine Ion Engine Propulsion Hover Unit Wheel Compact Wheel Hover Unit Hover Unit Utility Advanced Terrain Scanner Device Advanced Terrain Scanner Weapon Assault Rifle Energy Gun EM Pulse Gun Energy Cannon YOLO Cannon Ballistic Gun Assault Rifle Launcher Rocket Launcher Slashing Weapon Longsword +1 Build | -11 -10 -10 -10 -9 -8 ------- Run | Scr Mat Min Exi Min Mat Slots Evolved 3 | 3 . . . . . Power . | . . . . . . Propulsion 1 | 1 . . . . . Utility 1 | 1 . . . . . Weapon 1 | 1 . . . . . Parts Attached 20 | 5 3 1 1 . 10 Power 3 | 1 . . . . 2 Engine 3 | 1 . . . . 2 Core . | . . . . . . Reactor . | . . . . . . Propulsion 8 | 2 2 . . . 4 Treads . | . . . . . . Leg . | . . . . . . Wheel 2 | 2 . . . . . Hover 6 | . 2 . . . 4 Flight . | . . . . . . Utility 1 | . . . . . 1 Device 1 | . . . . . 1 Storage . | . . . . . . Processor . | . . . . . . Hackware . | . . . . . . Protection . | . . . . . . Artifact . | . . . . . . Weapon 8 | 2 1 1 1 . 3 Energy Gun 3 | 1 1 . . . 1 Energy Cannon 2 | . . . 1 . 1 Ballistic Gun 1 | 1 . . . . . Ballistic Cannon . | . . . . . . Launcher 1 | . . 1 . . . Special Weapon . | . . . . . . Impact Weapon . | . . . . . . Slashing Weapon 1 | . . . . . 1 Piercing Weapon . | . . . . . . Special Melee Weapon . | . . . . . . Unidentified Prototypes 2 | . . . . . 2 Parts Lost 1 | . . . 1 . . Power . | . . . . . . Propulsion 1 | . . . 1 . . Utility . | . . . . . . Weapon . | . . . . . . Highest Loss Streak 1 | . . . 1 . . Average Slot Usage (%) 66 | . 70 71 59 42 70 Engine 14 | . 14 14 14 14 14 Wheel 1 | . 11 . . . . Hover 25 | . 16 28 26 14 27 Device 2 | . . . . . 8 Energy Gun 8 | . 13 14 4 . 5 Energy Cannon 3 | . . . 9 14 2 Ballistic Gun 4 | . 14 11 . . . Launcher 1 | . . 2 4 . . Slashing Weapon 3 | . . . . . 11 Naked Turns . | . . . . . . Heaviest Build 28 | 9 9 11 23 23 28 Greatest Support 39 | 31 31 17 26 26 39 Greatest Overweight (x) 2 | 1 1 . 2 . . Average Overweight (x) . | . . . . . . Largest Inventory Capacity 3 | 2 2 2 2 2 3 Average Capacity 2 | 1 2 2 2 2 2 Most Carried 3 | . 2 2 2 2 3 Average Carried 1 | . 1 1 2 2 2 Final Capacity 3 | 2 2 2 2 2 3 Final Carried 2 | . 2 2 2 2 1 Class Distribution -------------------- 100% | Mutant Dominant Class ---------------- Mutant | -10/Materials Mutant | -10/Mines Mutant | -10/Exiles Mutant | -9/Mines Mutant | -8/Materials Resources | -11 -10 -10 -10 -9 -8 ----------- Run | Scr Mat Min Exi Min Mat Matter Collected 603 | 253 47 22 . 66 215 Remotely . | . . . . . . Salvage Created 663 | . 51 174 . 66 372 Parts 32 | . 7 4 . 4 17 Haulers Intercepted 3 | . 1 . . . 2 Recyclers Shooed . | . . . . . . Parts Field Recycled . | . . . . . . Retrieved Matter . | . . . . . . Parts Self-Destructed . | . . . . . . Prevented . | . . . . . . Kills | -11 -10 -10 -10 -9 -8 ------- Run | Scr Mat Min Exi Min Mat Combat Hostiles Destroyed 27 | . 2 18 . 2 5 Guns 4 | . 2 2 . . . Cannons 5 | . . . . 1 4 AOE 18 | . . 16 . 1 1 Classes Destroyed 12 | . 2 2 . 2 6 Builder 2 | . . . . 1 1 Tunneler 1 | . . 1 . . . Hauler 3 | . 1 . . . 2 Recycler 1 | . . . . . 1 Operator 1 | . . . . . 1 Turret 1 | . . . . . 1 Watcher 1 | . . . . . 1 Swarmer 2 | . . . . . 2 Grunt 7 | . 2 2 . 1 2 Brawler 1 | . . . . 1 . Sentry 1 | . . . . . 1 Assembled 16 | . . 16 . . . Best Kill Streak 17 | . 2 17 . 3 6 Combat Bots Only 16 | . 2 16 . 2 2 Max Kills in Single Turn 2 | . 1 2 . 2 2 Gunslinging . | . . . . . . Exploded 2 | . . 2 . 1 1 Melee . | . . . . . . Uniques/NPCs Destroyed . | . . . . . . Combat | -11 -10 -10 -10 -9 -8 -------- Run | Scr Mat Min Exi Min Mat Damage Taken 1498 | . 82 558 394 54 410 Core 1228 | . 71 457 313 43 344 Absorbed by Shields . | . . . . . . Redirected to Core 949 | . 38 336 302 43 230 Core Remaining (%) 54 | 100 . . . 8 . Volleys Fired 51 | 1 9 23 2 3 13 Largest 2 | 2 2 2 1 1 1 Hottest 100 | 70 70 60 100 100 100 Shots Fired 64 | 2 17 27 2 3 13 Gun 31 | 2 17 11 . . 1 Cannon 17 | . . . 2 3 12 Launcher 16 | . . 16 . . . Special . | . . . . . . Kinetic 14 | 1 9 4 . . . Thermal 27 | 1 8 . 2 3 13 Explosive 16 | . . 16 . . . Electromagnetic 7 | . . 7 . . . Robot Hit Streak 8 | . 6 8 . 2 3 Robot Miss Streak 4 | 2 3 4 2 3 2 Penetration Max . | . . . . . . Secondary Targets 2 | . 1 1 . . . Max Gunslinging Chain 1 | . 1 1 . . . Shots Hit Robots 42 | . 10 17 . 2 13 Core Hits 55 | . 6 34 . 3 12 Critical Hits 5 | . . . . 2 3 Critical Kills 1 | . . . . 1 . Critical Parts Destroyed 3 | . . . . . 3 Melee Attacks 10 | . . . . . 10 Impact . | . . . . . . Slashing 10 | . . . . . 10 Piercing . | . . . . . . Sneak Attacks 4 | . . . . . 4 Combat Hostiles . | . . . . . . Follow-up Attacks . | . . . . . . Damage Inflicted 4446 | . 141 1393 35 405 2472 Guns 249 | . 141 108 . . . Cannons 1128 | . . . . 230 898 Explosions 2328 | . . 1285 35 175 833 Melee 741 | . . . . . 741 Ramming . | . . . . . . Kinetic 144 | . 103 41 . . . Thermal 2267 | . 38 58 35 405 1731 Explosive 1227 | . . 1227 . . . Electromagnetic 67 | . . 67 . . . Impact . | . . . . . . Slashing 741 | . . . . . 741 Piercing . | . . . . . . Highest Corruption 1 | . 1 1 1 1 . Average Corruption 1 | . 1 1 1 1 . Corruption Purged . | . . . . . . Effects 4 | . . 2 2 . . Message Errors 1 | . . . 1 . . Data Loss (minor) 3 | . . 2 1 . . Overload Shots . | . . . . . . Overflow Damage 253 | . . 54 4 . 195 Projectiles . | . . . . . . Explosions 132 | . . 54 4 . 74 Melee 121 | . . . . . 121 Knockbacks . | . . . . . . Impact . | . . . . . . Kinetic . | . . . . . . Secondary . | . . . . . . Self-Inflicted Damage 258 | . . 89 . 54 115 Shots 6 | . . 3 . 1 2 Rammed . | . . . . . . Targets Rammed . | . . . . . . Kicked . | . . . . . . Crushed . | . . . . . . Highest Temperature 75 | 9 75 50 28 68 19 Average Temperature 24 | 6 30 23 16 36 9 Received Heat Transfer 238 | . 6 115 . . 117 Siege Activations . | . . . . . . Robots Corrupted . | . . . . . . Combat Hostiles . | . . . . . . Parts Fried 1 | . . 1 . . . Impact Corruptions . | . . . . . . Robots Melted . | . . . . . . Combat Hostiles . | . . . . . . Parts Melted 1 | . . . . . 1 Heat Transferred 2081 | . 111 50 80 320 1520 Parts Sabotaged . | . . . . . . Parts Stolen . | . . . . . . Parts Stripped . | . . . . . . Power Chain Reactions 1 | . . 1 . . . Missiles Intercepted . | . . . . . . Alert | -11 -10 -10 -10 -9 -8 ------- Run | Scr Mat Min Exi Min Mat Peak Influence 553 | . 87 113 . 70 553 Average Influence 188 | . 45 90 . 38 360 Maximum Alert Level 2 | . . . . . 2 Low Security (%) 62 | 100 100 100 . 100 9 Level 1 20 | . . . . . 49 Level 2 17 | . . . . . 41 Level 3 . | . . . . . . Level 4 . | . . . . . . Level 5 . | . . . . . . High Security . | . . . . . . Max Security . | . . . . . . Squads Dispatched 4 | . 1 . . . 3 Investigation 1 | . 1 . . . . Extermination . | . . . . . . Reinforcement 3 | . . . . . 3 Assault . | . . . . . . Garrison . | . . . . . . Intercept . | . . . . . . Construction Impeded 1 | . . . . . 1 Haulers Reinforced . | . . . . . . Stealth | -11 -10 -10 -10 -9 -8 --------- Run | Scr Mat Min Exi Min Mat Distress Signals 3 | . . . . . 3 Communications Jammed . | . . . . . . Distress Signals . | . . . . . . Times Spotted 57 | . 3 22 10 2 20 Peak Tracking Total 13 | . 2 8 13 2 5 Tactical Retreats 5 | . . 1 2 . 2 Traps | -11 -10 -10 -10 -9 -8 ------- Run | Scr Mat Min Exi Min Mat Traps Triggered 2 | . 2 . . . . Indirectly . | . . . . . . Trap Hack Attempts . | . . . . . . Triggered . | . . . . . . Disarmed . | . . . . . . Reprogrammed . | . . . . . . Reused . | . . . . . . Traps Extracted . | . . . . . . Installed . | . . . . . . Triggered . | . . . . . . Machines | -11 -10 -10 -10 -9 -8 ---------- Run | Scr Mat Min Exi Min Mat Machines Disabled 9 | . . . 3 . 6 Max in Single Turn 2 | . . . 2 . 2 Machines Sabotaged . | . . . . . . Garrisons Compromised . | . . . . . . Overloaded Fab Kills . | . . . . . . Fab Network Shutdowns . | . . . . . . Hacking | -11 -10 -10 -10 -9 -8 --------- Run | Scr Mat Min Exi Min Mat Machines Accessed 4 | . 2 . 1 . 1 Terminals 2 | . 1 . . . 1 Fabricators . | . . . . . . Repair Stations . | . . . . . . Recycling Units 1 | . 1 . . . . Scanalyzers . | . . . . . . Garrison Access . | . . . . . . Total Hacks 6 | . 3 . 1 . 2 Successful 2 | . 1 . 1 . . Failed 4 | . 2 . . . 2 Catastrophic 1 | . 1 . . . . Database Lockouts . | . . . . . . Manual 6 | . 3 . 1 . 2 Terminals 4 | . 2 . . . 2 Fabricators . | . . . . . . Repair Stations . | . . . . . . Recycling Units 1 | . 1 . . . . Scanalyzers . | . . . . . . Garrison Access . | . . . . . . Terminal Hacks 1 | . . . 1 . . EX-Prototype ID Bank 1 | . . . 1 . . Fabricator Hacks . | . . . . . . Repair Station Hacks . | . . . . . . Recycling Unit Hacks . | . . . . . . Scanalyzer . | . . . . . . Garrison Access Hacks . | . . . . . . Unauthorized Hacks 2 | . 2 . . . . Terminals . | . . . . . . Fabricators . | . . . . . . Repair Stations . | . . . . . . Recycling Units 1 | . 1 . . . . Tunnel 1 | . 1 . . . . Scanalyzers . | . . . . . . Garrison Access . | . . . . . . Data Cores Recovered 1 | . . . . . 1 Used 1 | . . . . . 1 Hacking Detections 2 | . 1 . . . 1 Full Trace Events . | . . . . . . Feedback Events . | . . . . . . Feedback Blocked . | . . . . . . Robot Schematics Acquired . | . . . . . . Robots Built . | . . . . . . Matter . | . . . . . . Time . | . . . . . . Total Robot Build Rating . | . . . . . . Part Schematics Acquired . | . . . . . . Parts Built . | . . . . . . Matter . | . . . . . . Time . | . . . . . . Total Part Build Rating . | . . . . . . Parts Repaired . | . . . . . . Time . | . . . . . . Parts Recycled . | . . . . . . Recycled Matter . | . . . . . . Retrieved Matter . | . . . . . . Retrieved Components . | . . . . . . Parts Scanalyzed . | . . . . . . Part Schematics Acquired . | . . . . . . Parts Damaged . | . . . . . . Bothacking | -11 -10 -10 -10 -9 -8 ------------ Run | Scr Mat Min Exi Min Mat Used RIF Installer . | . . . . . . Robots Hacked . | . . . . . . Non-combat . | . . . . . . Combat . | . . . . . . Robot Hacks Applied . | . . . . . . Relay Couplers Released . | . . . . . . Robots Rewired . | . . . . . . Allies Hacked . | . . . . . . Hacks Repelled . | . . . . . . Allies | -11 -10 -10 -10 -9 -8 -------- Run | Scr Mat Min Exi Min Mat Total Allies 4 | . . 4 . . . Largest Group 4 | . . 4 . . . Highest-Rated Group 71 | . . 71 . . . Highest-Rated Ally 31 | . . 31 . . . Total Orders . | . . . . . . Ally Attacks 31 | . . 4 . . 27 Total Damage 1414 | . . 58 . . 1356 Kills 11 | . . 1 . . 10 Allies Corrupted . | . . . . . . Allies Melted . | . . . . . . Turrets Deployed 1 | . . . . . 1 Intel | -11 -10 -10 -10 -9 -8 ------- Run | Scr Mat Min Exi Min Mat Robot Analysis Total . | . . . . . . Derelict Logs Recovered 1 | . . 1 . . . Drone Launches . | . . . . . . Drone Recoveries . | . . . . . . Exploration | -11 -10 -10 -10 -9 -8 ------------- Run | Scr Mat Min Exi Min Mat Turns Passed 1368 | 56 143 364 338 42 425 Spaces Moved 1409 | 57 155 483 382 48 284 Core 26 | 25 1 . . . . Treads . | . . . . . . Legs . | . . . . . . Wheels 76 | 32 44 . . . . Hover 1307 | . 110 483 382 48 284 Flight . | . . . . . . Fastest Speed 50 | 50 56 56 56 60 51 Average Speed 65 | 78 65 56 83 60 53 Slowest Speed 180 | 100 100 56 180 60 60 Overloaded Moves . | . . . . . . Propulsion Burnouts . | . . . . . . Robots Hopped . | . . . . . . Cave-ins Triggered . | . . . . . . Exploration Rate (%) 42 | 4 37 94 70 24 24 Regions Visited 5 Branch Regions 3 Pre-discovered Areas 2 | . 1 1 . . . Known Exits Taken . | . . . . . . Unknown Exits Taken 5 | 1 1 1 1 1 . Scrap Searched 2 | . . 2 . . . Spaces Dug 2 | . . . . . 2 Terrain Destroyed 299 | . . 123 22 26 128 Melee 2 | . . . . . 2 Projectile 5 | . . . . 1 4 AOE 292 | . . 123 22 25 122 Actions | -11 -10 -10 -10 -9 -8 --------- Run | Scr Mat Min Exi Min Mat Total 1753 | 63 178 549 395 51 517 Wait 228 | 1 6 37 5 1 178 Move 1404 | 56 154 482 381 47 284 Hop . | . . . . . . Pick Up 10 | . 2 1 2 . 5 Fast Attach 15 | 5 3 . 1 . 6 Attach 3 | . . . . . 3 Detach 2 | . . . . . 2 Swap 2 | . . 1 . . 1 Drop 19 | . 3 1 4 . 11 Fire 51 | 1 9 23 2 3 13 Melee 10 | . . . . . 10 Ram . | . . . . . . Kick . | . . . . . . Crush . | . . . . . . Escape Stasis . | . . . . . . Rewire . | . . . . . . Trap . | . . . . . . Miscellaneous 9 | . 1 4 . . 4 Route ------- -11/Scrapyard -10/Materials (discovered 2 exits: [*Mat] / [*Min]) -10/Mines (discovered 3 exits: [*Mat x2] / *Exi) -10/Exiles -9/Mines -8/Materials History --------- Turn | Location | Event 8 | -11/Scrapyard | Upgraded with Propulsion slot (x1) 8 | -11/Scrapyard | Upgraded with Utility slot (x1) 8 | -11/Scrapyard | Upgraded with Weapon slot (x1) 11 | -11/Scrapyard | Discovered new exit (range 16) 57 | -11/Scrapyard | Entered Materials 137 | -10/Materials | Discovered new exit (range 16) 189 | -10/Materials | Discovered new exit (range 7) 200 | -10/Materials | Entered Mines 203 | -10/Mines | Joined a pair of Derelicts in attacking an 0b10 outpost 225 | -10/Mines | Discovered new exit (range 11) 315 | -10/Mines | Build established: Mutant 348 | -10/Mines | Received a Rocket Launcher from a helpful Derelict 361 | -10/Mines | Discovered new exit (range 3) 376 | -10/Mines | Assisted by bots powering up and referring to "LRC-V3" 393 | -10/Mines | Learned location of Recycling (-7) 428 | -10/Mines | Received a Mining Laser from a helpful Derelict 495 | -10/Mines | Assembled infested the area 524 | -10/Mines | Core integrity fell below 50% 561 | -10/Mines | Deemed a non-threat by the Exiles lab entrance 561 | -10/Mines | Discovered new exit (range 5) 564 | -10/Mines | Destroyed 16 combat bots 564 | -10/Mines | Entered Exiles 566 | -10/Exiles | Reached level 2 579 | -10/Exiles | Met 8R-AWN 588 | -10/Exiles | Met EX-HEX 618 | -10/Exiles | Met EX-DEC 634 | -10/Exiles | Met EX-BIN 642 | -10/Exiles | Aligned with FarCom system 642 | -10/Exiles | Given EX-Vault access code 656 | -10/Exiles | Opened EX-Vault 664 | -10/Exiles | Found YOLO Cannon 670 | -10/Exiles | Found Longsword +1 695 | -10/Exiles | Warned to stay clear of 0b10 Research branches 770 | -10/Exiles | Found Deploy-a-Sentry 859 | -10/Exiles | Attacked by the Exiles 865 | -10/Exiles | Core integrity fell below 20% 887 | -10/Exiles | Discovered new exit (range 10) 902 | -10/Exiles | Stole three prototypes: YOLO Cannon, Longsword +1, Deploy-a-Sentry 902 | -10/Exiles | Entered Mines 934 | -9/Mines | Discovered new exit (range 15) 944 | -9/Mines | Entered Materials 945 | -8/Materials | Core integrity fell below 50% 945 | -8/Materials | Core integrity fell below 20% 946 | -8/Materials | Reached level 3 987 | -8/Materials | Reached level 4 1036 | -8/Materials | DAS Turret deployed 1336 | -8/Materials | Reached level 5 1369 | -8/Materials | Destroyed self with YOLO Cannon Last Messages --------------- S-10 Pest destroyed. Terminal disabled. Destroyed Lgt. Ion Engine. Destroyed Flight Unit. Destroyed Lgt. Ion Engine. U-05 Engineer lays Concrete. K-01 Serf collects debris. U-05 Engineer lays Concrete. Destroyed Lgt. Ion Engine. T-07 Excavator sends out distress signal. U-05 Engineer lays Concrete. S-10 Pest destroyed. U-05 Engineer lays Concrete. K-01 Serf collects debris. U-05 Engineer lays Concrete. K-01 Serf collects debris. U-05 Engineer builds a Wall. S-10 Pest destroyed. Wheel melted. U-05 Engineer destroyed. Map ----- +----------------------------------------------------+ | ?????????????????????????????????????????????????? | | ???????????????????????????#?????????????????????? | | ?????????????????????????????????????????????????? | | ?????#???????????? ???????#??????????????????????? | | ?#??????????????????????????#????????????????????? | | ?????#???????????????????????????????????????????? | | #???#??????? ? ?? ??????#??#????????#????????????? | | ?#??###??"? ????? ??????#????????????????????????? | | ?###?#?? ?????###+####???????????????????????????? | | ##T########+###= #????????????????????????????? | | ######## ?????????????????? | | T ? ? ? +???? ????????????????? | | ######??? ???????????????????? | | ###"########### #??????? ????????????????????? | | ### #### ###????????????????????????????? | | " ### """ #?##=##??????????##+###?????????????? | | " #?# """ #?## #??#? ? ?#??# ??? ??????????? | | " #?# """ #??#[##????? ????# #??????????????? | | #?# ##?#%#?##T?????? #??????????????? | | [#?# """ #?## #????????##?# #??????????????? | | ### """ !#?## #?#?? ?????# #??????????????? | | ### " ##?# ##??"? ???? ; ##?????????????? | | # # ##?# #??#??? ?? ;; k ;#?????????????? | | ### ##+###+###### ########+; ###########???? | | ??# # * % % r [ [ #???? | | ###" # [ @ = #???? | | ! # % a [ % g ? #???? | | # ###########+;;;;! ;;;# +???? | | # #?# # ;;; ; ????????? | | ## ### ######;;; ;;;??? ?????? | | # # #????? ??????????? | | + + """ """ ##???? ??????????? | | # # """ """ #?????" """u"T??????????? | | # ######## """ """ #?#?"?" """ ???????????? | | #%! ##?????# #?? ??" """ ???????????? | | ###"# |###?##??? #?? ?? ??????????????? | | #### |#=##????####?#####?????###???????????????? | | # #?#????#?????#????? ??????? ??????????? | | # #??#????#?????#?#?????????????????????? | | # #???? ??? ?? ?????????????????????????? | | ###+#### ####??? ??????????##???????????????????? | | ## ##??? ?????##???????????????????????? | | " #?? ???????#????????????????????????? | | ""#???????????????????????????????????? | | = S"#??? ???????????????????????????????? | | #???????????????????????????????????? | | # ##??????????#???????????????????????? | | #" #???????????????????????????????????? | | #"" """""#####???????????????????????????????????? | | ###"## ###??????????????????????????????????????? | +----------------------------------------------------+ Best States ------------- Heat Dissipation 37 Energy Generation 14 Energy Capacity 275 Matter Stores 300 Matter Capacity 300 Sight Range 16 Robot Scan Range 16 Terrain Scan Range 20 Terrain Scan Density 10 Evasion (%) 54 Item Schematics ----------------- None Robot Schematics ------------------ None Fabricated ------------ Nothing Alien Tech Used ----------------- None Achievements -------------- None Challenges ------------ None RPGLIKE | -11 -10 -10 -10 -9 -8 --------- Run | Scr Mat Min Exi Min Mat Levels Raised 4 | . . . 1 . 3 XP Earned 9439 | 3000 435 879 350 750 4025 XP Spent 6100 | 2850 . . 1125 . 2125 Upgrades 29 | 11 . . 8 . 10 Propulsion Slot 1 | 1 . . . . . Utility Slot 1 | 1 . . . . . Weapon Slot 1 | 1 . . . . . Core Integrity 8 | . . . 5 . 3 Heat Dissipation 2 | . . . . . 2 Mass Support 4 | 1 . . 3 . . Inventory Capacity 3 | 2 . . . . 1 Sensor Range 8 | 5 . . . . 3 Ranged Accuracy 1 | . . . . . 1 Protomatter Created 137 | . 87 5 . 21 24 Integrity Restored 183 | . 22 80 . . 81 Core 183 | . 22 80 . . 81 Protomatter Decayed 140 | . 36 63 . . 41 Game ------ Seed DecoderBeamComputer Manual? 0 Play Time 00:21:50 Cumulative 68.5 hours Start 2019.12.17 @ 05:50:56 End 2019.12.17 @ 06:07:28 Sessions 1 Manual Loads 0 Difficulty Rogue Special Mode Winter2019/RPGLIKE Game No. 183 Rogue 183 Adventurer 0 Explorer 0 Win Type - Total 1 Types 1/0/0/0/0/0/0 Lore% 66 Gallery% 64 Achievement% 52 Wizard Run 0 Options --------- ASCII 0 Keyboard 0 Movement Numpad Keybinds 0 Fullscreen 1 Font 24/Smallcaps Map View 76x50 Tactical HUD 0 Map Filters NONE Filters NONE Steam 1 RUN: cdf8552c-4f63-467f-8152-f80d002ad936